[Event "Titled Tuesday Blitz January 17 Late 2023"]
[White "Mione, Dario"]
[Black "Pein, Jonathan"]
[WhiteFideId "806625"]
[BlackFideId "417092"]
[WhiteElo "2228"]
[BlackElo "2265"]
[Result "1-0"]
[Round "08"]
[TimeControl "180+2"]
[Date "2023.01.17"]
[WhiteClock "0:00:37"]
[BlackClock "0:00:54"]

1. e4 {[%clk 0:02:59]}  e5 {[%clk 0:02:58]} 2. Nf3 {[%clk 0:02:58]}  d6 {[%clk 0:02:58]} 3. d4 {[%clk 0:02:58]}  exd4 {[%clk 0:02:59]} 4. Nxd4 {[%clk 0:02:58]}  Nf6 {[%clk 0:03:00]} 5. Nc3 {[%clk 0:02:57]}  g6 {[%clk 0:03:00]} 6. Be3 {[%clk 0:02:54]}  Bg7 {[%clk 0:03:01]} 7. Qd2 {[%clk 0:02:54]}  O-O {[%clk 0:03:01]} 8. O-O-O {[%clk 0:02:53]}  Nc6 {[%clk 0:03:01]} 9. f3 {[%clk 0:02:50]}  Nxd4 {[%clk 0:03:01]} 10. Bxd4 {[%clk 0:02:49]}  Be6 {[%clk 0:03:02]} 11. g4 {[%clk 0:02:49]}  c5 {[%clk 0:03:02]} 12. Be3 {[%clk 0:02:48]}  Qa5 {[%clk 0:03:03]} 13. Kb1 {[%clk 0:02:34]}  b5 {[%clk 0:03:00]} 14. Nd5 {[%clk 0:02:28]}  Qa6 {[%clk 0:02:58]} 15. Bh6 {[%clk 0:02:09]}  Nxd5 {[%clk 0:02:48]} 16. Bxg7 {[%clk 0:01:44]}  Nb6 {[%clk 0:02:04]} 17. Qh6 {[%clk 0:01:21]}  Qxa2+ {[%clk 0:01:56]} 18. Kc1 {[%clk 0:01:20]}  Nd7 {[%clk 0:01:24]} 19. Bxb5 {[%clk 0:01:08]}  Qa1+ {[%clk 0:01:17]} 20. Kd2 {[%clk 0:01:07]}  Qa5+ {[%clk 0:01:18]} 21. Bc3 {[%clk 0:01:07]}  Qxc3+ {[%clk 0:01:12]} 22. bxc3 {[%clk 0:01:06]}  Ne5 {[%clk 0:01:13]} 23. Be2 {[%clk 0:00:59]}  Rab8 {[%clk 0:01:13]} 24. h4 {[%clk 0:00:58]}  f6 {[%clk 0:01:11]} 25. h5 {[%clk 0:00:58]}  g5 {[%clk 0:01:10]} 26. f4 {[%clk 0:00:57]}  Nf7 {[%clk 0:01:10]} 27. Qxf6 {[%clk 0:00:56]}  Bd7 {[%clk 0:01:02]} 28. fxg5 {[%clk 0:00:54]}  Ne5 {[%clk 0:01:01]} 29. Qxd6 {[%clk 0:00:47]}  Rfe8 {[%clk 0:01:01]} 30. g6 {[%clk 0:00:44]}  Rbd8 {[%clk 0:00:59]} 31. Kc1 {[%clk 0:00:42]}  h6 {[%clk 0:00:56]} 32. g5 {[%clk 0:00:39]}  Re6 {[%clk 0:00:53]} 33. Qxe6+ {[%clk 0:00:38]}  Bxe6 {[%clk 0:00:54]} 34. Rxd8+ {[%clk 0:00:37]}  Kg7 {[%clk 0:00:54]} 1-0


[Site "https://www.chess.com"]

[Event "Titled Tuesday Blitz January 17 Late 2023"]
[White "Kozin, Yuri"]
[Black "Rios Escobar, Adan"]
[WhiteFideId "4129920"]
[BlackFideId "3403645"]
[WhiteElo "2251"]
[BlackElo "2234"]
[Result "1-0"]
[Round "08"]
[TimeControl "180+2"]
[Date "2023.01.17"]
[WhiteClock "0:00:08"]
[BlackClock "0:00:13"]

1. e4 {[%clk 0:02:56]}  c5 {[%clk 0:02:55]} 2. Nf3 {[%clk 0:02:56]}  d6 {[%clk 0:02:56]} 3. d4 {[%clk 0:02:56]}  cxd4 {[%clk 0:02:57]} 4. Nxd4 {[%clk 0:02:57]}  Nf6 {[%clk 0:02:56]} 5. Nc3 {[%clk 0:02:57]}  a6 {[%clk 0:02:57]} 6. Be3 {[%clk 0:02:58]}  e5 {[%clk 0:02:56]} 7. Nf3 {[%clk 0:02:59]}  Be7 {[%clk 0:02:50]} 8. Bc4 {[%clk 0:02:59]}  Be6 {[%clk 0:02:48]} 9. Bxe6 {[%clk 0:02:58]}  fxe6 {[%clk 0:02:49]} 10. O-O {[%clk 0:02:59]}  Nc6 {[%clk 0:02:46]} 11. Ng5 {[%clk 0:02:48]}  Qd7 {[%clk 0:02:39]} 12. Na4 {[%clk 0:02:47]}  Bd8 {[%clk 0:02:30]} 13. Qf3 {[%clk 0:02:36]}  O-O {[%clk 0:02:27]} 14. Qh3 {[%clk 0:02:33]}  Re8 {[%clk 0:02:27]} 15. Rad1 {[%clk 0:02:23]}  h6 {[%clk 0:02:20]} 16. Nf3 {[%clk 0:02:04]}  Nxe4 {[%clk 0:02:18]} 17. Rfe1 {[%clk 0:01:48]}  b5 {[%clk 0:01:53]} 18. Nc5 {[%clk 0:01:45]}  Nxc5 {[%clk 0:01:50]} 19. Bxc5 {[%clk 0:01:45]}  d5 {[%clk 0:01:49]} 20. Nxe5 {[%clk 0:01:42]}  Nxe5 {[%clk 0:01:46]} 21. Rxe5 {[%clk 0:01:41]}  Bf6 {[%clk 0:01:46]} 22. Rexd5 {[%clk 0:01:20]}  Qxd5 {[%clk 0:01:34]} 23. Rxd5 {[%clk 0:01:19]}  exd5 {[%clk 0:01:35]} 24. g3 {[%clk 0:01:16]}  Bxb2 {[%clk 0:01:31]} 25. Bb6 {[%clk 0:01:14]}  Re7 {[%clk 0:01:09]} 26. Qf5 {[%clk 0:01:08]}  Re5 {[%clk 0:00:54]} 27. Qd7 {[%clk 0:01:01]}  Rf8 {[%clk 0:00:51]} 28. Be3 {[%clk 0:00:49]}  d4 {[%clk 0:00:38]} 29. Bf4 {[%clk 0:00:39]}  Ref5 {[%clk 0:00:37]} 30. h4 {[%clk 0:00:34]}  g5 {[%clk 0:00:32]} 31. Qe6+ {[%clk 0:00:32]}  Kh7 {[%clk 0:00:22]} 32. hxg5 {[%clk 0:00:16]}  hxg5 {[%clk 0:00:23]} 33. Bxg5 {[%clk 0:00:16]}  d3 {[%clk 0:00:15]} 34. Qh6+ {[%clk 0:00:14]}  Kg8 {[%clk 0:00:15]} 35. Qg6+ {[%clk 0:00:13]}  Bg7 {[%clk 0:00:13]} 36. Bh6 {[%clk 0:00:11]}  R8f7 {[%clk 0:00:06]} 37. Bxg7 {[%clk 0:00:09]}  dxc2 {[%clk 0:00:05]} 38. Bb2+ {[%clk 0:00:08]}  Kf8 {[%clk 0:00:06]} 39. Qd6+ {[%clk 0:00:08]}  Kg8 {[%clk 0:00:03]} 40. Qd8+ {[%clk 0:00:07]}  Rf8 {[%clk 0:00:01]} 41. Qc7 {[%clk 0:00:06]}  R8f7 {[%clk 0:00:01]} 42. Qxc2 {[%clk 0:00:07]}  Rxf2 {[%clk 0:00:01]} 43. Qxf2 {[%clk 0:00:07]}  Rxf2 {[%clk 0:00:01]} 44. Kxf2 {[%clk 0:00:07]}  Kf7 {[%clk 0:00:02]} 45. Ke3 {[%clk 0:00:07]}  a5 {[%clk 0:00:03]} 46. Bc3 {[%clk 0:00:06]}  b4 {[%clk 0:00:03]} 47. Be1 {[%clk 0:00:06]}  Ke6 {[%clk 0:00:04]} 48. Kd3 {[%clk 0:00:07]}  Kf5 {[%clk 0:00:04]} 49. Kc4 {[%clk 0:00:06]}  Ke4 {[%clk 0:00:05]} 50. Kb5 {[%clk 0:00:07]}  Kd3 {[%clk 0:00:04]} 51. Kxa5 {[%clk 0:00:06]}  Ke2 {[%clk 0:00:05]} 52. g4 {[%clk 0:00:05]}  Kxe1 {[%clk 0:00:04]} 53. Kxb4 {[%clk 0:00:05]}  Ke2 {[%clk 0:00:04]} 54. g5 {[%clk 0:00:06]}  Ke3 {[%clk 0:00:05]} 55. g6 {[%clk 0:00:07]}  Ke4 {[%clk 0:00:06]} 56. g7 {[%clk 0:00:08]}  Ke5 {[%clk 0:00:07]} 57. g8=Q {[%clk 0:00:09]}  Kd6 {[%clk 0:00:08]} 58. Qg6+ {[%clk 0:00:08]}  Kd5 {[%clk 0:00:08]} 59. Qd3+ {[%clk 0:00:08]}  Kc6 {[%clk 0:00:09]} 60. Qc4+ {[%clk 0:00:07]}  Kb6 {[%clk 0:00:10]} 61. Qc5+ {[%clk 0:00:08]}  Kb7 {[%clk 0:00:11]} 62. Qd6 {[%clk 0:00:07]}  Ka7 {[%clk 0:00:09]} 63. Qc6 {[%clk 0:00:06]}  Kb8 {[%clk 0:00:10]} 64. Qd7 {[%clk 0:00:06]}  Ka8 {[%clk 0:00:11]} 65. Kb5 {[%clk 0:00:07]}  Kb8 {[%clk 0:00:12]} 66. Kb6 {[%clk 0:00:07]}  Ka8 {[%clk 0:00:13]} 67. Qb7# {[%clk 0:00:08]} 1-0


[Site "https://www.chess.com"]

[Event "Titled Tuesday Blitz January 17 Late 2023"]
[White "Kovacs, Klara"]
[Black "Womacka, Mathias"]
[WhiteFideId "733210"]
[BlackFideId "4611390"]
[WhiteElo "2121"]
[BlackElo "2396"]
[Result "1-0"]
[Round "08"]
[TimeControl "180+2"]
[Date "2023.01.17"]
[WhiteClock "0:01:49"]
[BlackClock "0:01:44"]

1. d4 {[%clk 0:02:55]}  Nf6 {[%clk 0:02:59]} 2. Nf3 {[%clk 0:02:55]}  e6 {[%clk 0:02:59]} 3. g3 {[%clk 0:02:56]}  c5 {[%clk 0:02:58]} 4. Bg2 {[%clk 0:02:57]}  cxd4 {[%clk 0:02:57]} 5. Nxd4 {[%clk 0:02:57]}  Qb6 {[%clk 0:02:57]} 6. e4 {[%clk 0:02:56]}  Bc5 {[%clk 0:02:49]} 7. c3 {[%clk 0:02:54]}  Nc6 {[%clk 0:02:49]} 8. Nxc6 {[%clk 0:02:32]}  Bxf2+ {[%clk 0:02:45]} 9. Kf1 {[%clk 0:02:32]}  dxc6 {[%clk 0:02:41]} 10. Bg5 {[%clk 0:02:30]}  Qxb2 {[%clk 0:02:17]} 11. Nd2 {[%clk 0:02:23]}  Bc5 {[%clk 0:02:14]} 12. Nb3 {[%clk 0:02:20]}  Be7 {[%clk 0:02:11]} 13. e5 {[%clk 0:02:02]}  Ne4 {[%clk 0:02:04]} 14. Bxe4 {[%clk 0:01:58]}  Bxg5 {[%clk 0:02:04]} 15. Qf3 {[%clk 0:01:52]}  O-O {[%clk 0:01:57]} 16. h4 {[%clk 0:01:52]}  Be7 {[%clk 0:01:55]} 17. Bd3 {[%clk 0:01:49]}  Qxc3 {[%clk 0:01:47]} 18. Bxh7+ {[%clk 0:01:48]}  Kxh7 {[%clk 0:01:46]} 19. Qxc3 {[%clk 0:01:48]}  Bd7 {[%clk 0:01:45]} 20. Qd3+ {[%clk 0:01:48]}  Kg8 {[%clk 0:01:44]} 21. Qxd7 {[%clk 0:01:49]} 1-0


[Site "https://www.chess.com"]

[Event "Titled Tuesday Blitz January 17 Late 2023"]
[White "Szente Varga, Fruzsina"]
[Black "Kaplan, Avi Harrison"]
[WhiteFideId "712264"]
[BlackFideId "30934559"]
[WhiteElo "2075"]
[BlackElo "2146"]
[Result "0-1"]
[Round "08"]
[TimeControl "180+2"]
[Date "2023.01.17"]
[WhiteClock "0:00:14"]
[BlackClock "0:00:17"]

1. e4 {[%clk 0:03:00]}  d6 {[%clk 0:02:59]} 2. d4 {[%clk 0:03:00]}  Nf6 {[%clk 0:02:59]} 3. Nc3 {[%clk 0:03:01]}  Nbd7 {[%clk 0:03:00]} 4. Be3 {[%clk 0:03:00]}  e5 {[%clk 0:02:59]} 5. f3 {[%clk 0:02:58]}  c6 {[%clk 0:02:58]} 6. Qd2 {[%clk 0:02:58]}  b5 {[%clk 0:02:58]} 7. O-O-O {[%clk 0:02:56]}  Qa5 {[%clk 0:02:58]} 8. Kb1 {[%clk 0:02:56]}  Be7 {[%clk 0:02:58]} 9. g4 {[%clk 0:02:52]}  h6 {[%clk 0:02:59]} 10. h4 {[%clk 0:02:51]}  Nb6 {[%clk 0:02:50]} 11. dxe5 {[%clk 0:02:04]}  dxe5 {[%clk 0:02:42]} 12. Bc5 {[%clk 0:01:59]}  Be6 {[%clk 0:02:00]} 13. Bxe7 {[%clk 0:01:57]}  Bxa2+ {[%clk 0:01:59]} 14. Nxa2 {[%clk 0:01:52]}  Qxd2 {[%clk 0:01:40]} 15. Rxd2 {[%clk 0:01:53]}  Kxe7 {[%clk 0:01:40]} 16. Nb4 {[%clk 0:01:48]}  Rac8 {[%clk 0:01:35]} 17. Na6 {[%clk 0:01:46]}  Rhd8 {[%clk 0:01:33]} 18. Rhh2 {[%clk 0:01:46]}  Ne8 {[%clk 0:01:20]} 19. b3 {[%clk 0:01:37]}  Nd6 {[%clk 0:01:16]} 20. Nc5 {[%clk 0:01:33]}  b4 {[%clk 0:01:13]} 21. Ba6 {[%clk 0:01:29]}  Rc7 {[%clk 0:01:09]} 22. Nh3 {[%clk 0:01:28]}  Na8 {[%clk 0:00:37]} 23. g5 {[%clk 0:01:21]}  hxg5 {[%clk 0:00:36]} 24. Nxg5 {[%clk 0:01:20]}  Nb5 {[%clk 0:00:24]} 25. Bxb5 {[%clk 0:01:09]}  cxb5 {[%clk 0:00:24]} 26. Rxd8 {[%clk 0:01:09]}  Kxd8 {[%clk 0:00:25]} 27. Rd2+ {[%clk 0:01:08]}  Ke7 {[%clk 0:00:25]} 28. Nd3 {[%clk 0:01:03]}  f6 {[%clk 0:00:26]} 29. Nh3 {[%clk 0:01:03]}  a5 {[%clk 0:00:27]} 30. f4 {[%clk 0:01:01]}  exf4 {[%clk 0:00:25]} 31. Nhxf4 {[%clk 0:01:01]}  Kf7 {[%clk 0:00:24]} 32. Nd5 {[%clk 0:01:01]}  Rc8 {[%clk 0:00:24]} 33. h5 {[%clk 0:01:00]}  Nc7 {[%clk 0:00:24]} 34. N3f4 {[%clk 0:00:57]}  Ne6 {[%clk 0:00:22]} 35. Nxe6 {[%clk 0:00:57]}  Kxe6 {[%clk 0:00:23]} 36. Rg2 {[%clk 0:00:57]}  Rh8 {[%clk 0:00:20]} 37. Nf4+ {[%clk 0:00:55]}  Kf7 {[%clk 0:00:19]} 38. Rg6 {[%clk 0:00:49]}  Re8 {[%clk 0:00:19]} 39. Nd3 {[%clk 0:00:40]}  Rxe4 {[%clk 0:00:19]} 40. Rg3 {[%clk 0:00:35]}  Rh4 {[%clk 0:00:19]} 41. Nf4 {[%clk 0:00:35]}  Rxf4 {[%clk 0:00:19]} 42. Rh3 {[%clk 0:00:35]}  Rf5 {[%clk 0:00:18]} 43. Kb2 {[%clk 0:00:34]}  Rc5 {[%clk 0:00:18]} 44. Rh4 {[%clk 0:00:31]}  Kg8 {[%clk 0:00:18]} 45. Kc1 {[%clk 0:00:26]}  Kh7 {[%clk 0:00:19]} 46. Kd2 {[%clk 0:00:27]}  Kh6 {[%clk 0:00:19]} 47. Kd3 {[%clk 0:00:27]}  Rxh5 {[%clk 0:00:19]} 48. Rd4 {[%clk 0:00:27]}  Re5 {[%clk 0:00:20]} 49. Rd7 {[%clk 0:00:26]}  a4 {[%clk 0:00:19]} 50. bxa4 {[%clk 0:00:25]}  bxa4 {[%clk 0:00:20]} 51. Ra7 {[%clk 0:00:26]}  a3 {[%clk 0:00:21]} 52. Ra4 {[%clk 0:00:25]}  g5 {[%clk 0:00:19]} 53. Kd4 {[%clk 0:00:18]}  g4 {[%clk 0:00:18]} 54. Ra6 {[%clk 0:00:16]}  Kg6 {[%clk 0:00:16]} 55. Kc4 {[%clk 0:00:14]}  Re4+ {[%clk 0:00:16]} 56. Kb3 {[%clk 0:00:14]}  g3 {[%clk 0:00:17]} 57. Ra8 {[%clk 0:00:14]}  Rg4 {[%clk 0:00:17]} 0-1


[Site "https://www.chess.com"]

[Event "Titled Tuesday Blitz January 17 Late 2023"]
[White "Van Dael, Siem"]
[Black "Donskov, Anatoly"]
[WhiteFideId "1049771"]
[BlackFideId "24143413"]
[WhiteElo "2319"]
[BlackElo "2279"]
[Result "1-0"]
[Round "08"]
[TimeControl "180+2"]
[Date "2023.01.17"]
[WhiteClock "0:01:20"]
[BlackClock "0:00:03"]

1. e4 {[%clk 0:03:00]}  c5 {[%clk 0:02:59]} 2. Nf3 {[%clk 0:03:01]}  e6 {[%clk 0:02:59]} 3. d4 {[%clk 0:03:01]}  cxd4 {[%clk 0:03:00]} 4. Nxd4 {[%clk 0:03:02]}  Nf6 {[%clk 0:03:01]} 5. Nc3 {[%clk 0:03:02]}  Nc6 {[%clk 0:03:01]} 6. Nxc6 {[%clk 0:03:02]}  bxc6 {[%clk 0:03:02]} 7. e5 {[%clk 0:03:03]}  Nd5 {[%clk 0:03:02]} 8. Ne4 {[%clk 0:03:02]}  Qc7 {[%clk 0:03:03]} 9. f4 {[%clk 0:03:02]}  Rb8 {[%clk 0:03:03]} 10. c4 {[%clk 0:03:00]}  Bb4+ {[%clk 0:03:03]} 11. Ke2 {[%clk 0:03:01]}  O-O {[%clk 0:03:01]} 12. Kf3 {[%clk 0:02:58]}  f5 {[%clk 0:02:59]} 13. Nf2 {[%clk 0:02:55]}  c5 {[%clk 0:02:35]} 14. cxd5 {[%clk 0:02:52]}  Bb7 {[%clk 0:02:34]} 15. Bc4 {[%clk 0:02:52]}  d6 {[%clk 0:02:28]} 16. a3 {[%clk 0:02:46]}  Ba5 {[%clk 0:02:23]} 17. Kg3 {[%clk 0:02:21]}  dxe5 {[%clk 0:01:54]} 18. dxe6 {[%clk 0:02:20]}  g5 {[%clk 0:01:02]} 19. Qd7 {[%clk 0:02:15]}  exf4+ {[%clk 0:00:58]} 20. Kh3 {[%clk 0:02:15]}  Qxd7 {[%clk 0:00:24]} 21. exd7+ {[%clk 0:02:14]}  Kg7 {[%clk 0:00:25]} 22. b4 {[%clk 0:02:03]}  g4+ {[%clk 0:00:16]} 23. Kh4 {[%clk 0:02:03]}  Bd8+ {[%clk 0:00:16]} 24. Kh5 {[%clk 0:02:03]}  Bxg2 {[%clk 0:00:15]} 25. Bb2+ {[%clk 0:02:02]}  Bf6 {[%clk 0:00:13]} 26. Bxf6+ {[%clk 0:01:55]}  Rxf6 {[%clk 0:00:14]} 27. Rhe1 {[%clk 0:01:54]}  Rbf8 {[%clk 0:00:05]} 28. Re7+ {[%clk 0:01:52]}  Kh8 {[%clk 0:00:05]} 29. Re8 {[%clk 0:01:50]}  Kg7 {[%clk 0:00:03]} 30. Rxf8 {[%clk 0:01:43]}  Rxf8 {[%clk 0:00:04]} 31. Re1 {[%clk 0:01:35]}  g3 {[%clk 0:00:03]} 32. Re7+ {[%clk 0:01:33]}  Kf6 {[%clk 0:00:03]} 33. Re6+ {[%clk 0:01:33]}  Kg7 {[%clk 0:00:03]} 34. hxg3 {[%clk 0:01:34]}  fxg3 {[%clk 0:00:03]} 35. Re7+ {[%clk 0:01:28]}  Kf6 {[%clk 0:00:03]} 36. Rf7+ {[%clk 0:01:28]}  Rxf7 {[%clk 0:00:03]} 37. d8=Q+ {[%clk 0:01:28]}  Kg7 {[%clk 0:00:03]} 38. Qg5+ {[%clk 0:01:24]}  Kf8 {[%clk 0:00:03]} 39. Qxg3 {[%clk 0:01:20]} 1-0


[Site "https://www.chess.com"]

[Event "Titled Tuesday Blitz January 17 Late 2023"]
[White "Chlpik, Martin"]
[Black "Gurevich, Dmitry"]
[WhiteFideId "14923351"]
[BlackFideId "2000407"]
[WhiteElo "2287"]
[BlackElo "2393"]
[Result "0-1"]
[Round "08"]
[TimeControl "180+2"]
[Date "2023.01.17"]
[WhiteClock "0:00:01"]
[BlackClock "0:00:54"]

1. d4 {[%clk 0:03:00]}  Nf6 {[%clk 0:02:59]} 2. c4 {[%clk 0:03:00]}  a6 {[%clk 0:02:59]} 3. Nc3 {[%clk 0:03:00]}  c5 {[%clk 0:02:59]} 4. d5 {[%clk 0:02:55]}  b5 {[%clk 0:02:58]} 5. cxb5 {[%clk 0:02:53]}  axb5 {[%clk 0:02:57]} 6. Nxb5 {[%clk 0:02:50]}  Qa5+ {[%clk 0:02:56]} 7. Nc3 {[%clk 0:02:50]}  Bb7 {[%clk 0:02:56]} 8. Bd2 {[%clk 0:02:48]}  Qb6 {[%clk 0:02:55]} 9. e4 {[%clk 0:02:46]}  e6 {[%clk 0:02:54]} 10. Bc4 {[%clk 0:02:44]}  Nxe4 {[%clk 0:02:49]} 11. Nxe4 {[%clk 0:02:35]}  exd5 {[%clk 0:02:48]} 12. Ng5 {[%clk 0:01:53]}  dxc4 {[%clk 0:02:44]} 13. Qe2+ {[%clk 0:01:48]}  Be7 {[%clk 0:02:42]} 14. Bc3 {[%clk 0:01:41]}  Bxg2 {[%clk 0:02:28]} 15. N1f3 {[%clk 0:01:04]}  Bxh1 {[%clk 0:02:25]} 16. Ne5 {[%clk 0:01:03]}  O-O {[%clk 0:02:12]} 17. Nxc4 {[%clk 0:00:53]}  Qd8 {[%clk 0:02:07]} 18. Nxh7 {[%clk 0:00:30]}  Kxh7 {[%clk 0:02:02]} 19. Qh5+ {[%clk 0:00:26]}  Kg8 {[%clk 0:02:01]} 20. Bxg7 {[%clk 0:00:23]}  Kxg7 {[%clk 0:02:01]} 21. Ke2 {[%clk 0:00:19]}  Bg5 {[%clk 0:01:48]} 22. Rg1 {[%clk 0:00:19]}  Qe7+ {[%clk 0:01:43]} 23. Ne3 {[%clk 0:00:17]}  f6 {[%clk 0:01:28]} 24. Kf1 {[%clk 0:00:16]}  Be4 {[%clk 0:01:23]} 25. h4 {[%clk 0:00:14]}  Rh8 {[%clk 0:01:19]} 26. Qg4 {[%clk 0:00:12]}  Qe6 {[%clk 0:01:12]} 27. Qg3 {[%clk 0:00:05]}  Rxh4 {[%clk 0:01:07]} 28. Qxh4 {[%clk 0:00:04]}  Bd3+ {[%clk 0:01:03]} 29. Ke1 {[%clk 0:00:04]}  Rxa2 {[%clk 0:00:58]} 30. Rg2 {[%clk 0:00:01]}  Bg6 {[%clk 0:00:54]} 0-1


[Site "https://www.chess.com"]

[Event "Titled Tuesday Blitz January 17 Late 2023"]
[White "Slavin, Alexey"]
[Black "Aguilar, Juan"]
[WhiteFideId "24104388"]
[BlackFideId "3800091"]
[WhiteElo "2364"]
[BlackElo "2254"]
[Result "1-0"]
[Round "08"]
[TimeControl "180+2"]
[Date "2023.01.17"]
[WhiteClock "0:00:30"]
[BlackClock "0:00:05"]

1. e4 {[%clk 0:03:00]}  g6 {[%clk 0:03:00]} 2. Nc3 {[%clk 0:02:59]}  Bg7 {[%clk 0:03:00]} 3. g3 {[%clk 0:02:56]}  d6 {[%clk 0:03:01]} 4. Bg2 {[%clk 0:02:56]}  e5 {[%clk 0:03:01]} 5. Nge2 {[%clk 0:02:57]}  Nf6 {[%clk 0:03:01]} 6. O-O {[%clk 0:02:57]}  O-O {[%clk 0:03:02]} 7. d3 {[%clk 0:02:58]}  Nbd7 {[%clk 0:03:00]} 8. h3 {[%clk 0:02:58]}  c6 {[%clk 0:02:56]} 9. f4 {[%clk 0:02:57]}  Qb6+ {[%clk 0:02:56]} 10. Kh2 {[%clk 0:02:57]}  d5 {[%clk 0:02:46]} 11. fxe5 {[%clk 0:02:51]}  Nxe5 {[%clk 0:02:46]} 12. exd5 {[%clk 0:02:48]}  Nxd5 {[%clk 0:02:40]} 13. Nxd5 {[%clk 0:02:47]}  cxd5 {[%clk 0:02:40]} 14. Bxd5 {[%clk 0:02:41]}  Be6 {[%clk 0:02:40]} 15. Bg2 {[%clk 0:02:41]}  Rad8 {[%clk 0:02:36]} 16. Nf4 {[%clk 0:02:40]}  Bd7 {[%clk 0:02:30]} 17. d4 {[%clk 0:02:35]}  Bc6 {[%clk 0:02:08]} 18. c3 {[%clk 0:02:34]}  Bxg2 {[%clk 0:02:04]} 19. Nxg2 {[%clk 0:02:34]}  Qa6 {[%clk 0:01:39]} 20. Bf4 {[%clk 0:02:29]}  Nd3 {[%clk 0:01:38]} 21. Qc2 {[%clk 0:02:20]}  Rfe8 {[%clk 0:01:34]} 22. Bg5 {[%clk 0:02:15]}  Rd5 {[%clk 0:01:30]} 23. h4 {[%clk 0:01:59]}  h6 {[%clk 0:01:25]} 24. Be3 {[%clk 0:01:48]}  Qb5 {[%clk 0:00:29]} 25. b3 {[%clk 0:01:40]}  Rc8 {[%clk 0:00:26]} 26. Rad1 {[%clk 0:01:35]}  Nb4 {[%clk 0:00:23]} 27. Qf2 {[%clk 0:01:34]}  Nd3 {[%clk 0:00:16]} 28. Rxd3 {[%clk 0:01:27]}  Qxd3 {[%clk 0:00:16]} 29. Qxf7+ {[%clk 0:01:27]}  Kh7 {[%clk 0:00:16]} 30. Rf6 {[%clk 0:00:49]}  Rf8 {[%clk 0:00:08]} 31. Qxd5 {[%clk 0:00:44]}  Rxf6 {[%clk 0:00:08]} 32. Qxb7 {[%clk 0:00:44]}  Rf3 {[%clk 0:00:07]} 33. Bf4 {[%clk 0:00:42]}  Qf5 {[%clk 0:00:06]} 34. Qxf3 {[%clk 0:00:42]}  g5 {[%clk 0:00:05]} 35. hxg5 {[%clk 0:00:40]}  hxg5 {[%clk 0:00:06]} 36. Qh5+ {[%clk 0:00:39]}  Bh6 {[%clk 0:00:05]} 37. Be5 {[%clk 0:00:33]}  Qf3 {[%clk 0:00:05]} 38. Qxf3 {[%clk 0:00:30]} 1-0


[Site "https://www.chess.com"]

[Event "Titled Tuesday Blitz January 17 Late 2023"]
[White "Artemenko, Oleg"]
[Black "ritanovikova"]
[WhiteFideId "14201798"]
[WhiteElo "2246"]
[BlackElo "2148"]
[Result "1-0"]
[Round "08"]
[TimeControl "180+2"]
[Date "2023.01.17"]
[WhiteClock "0:00:03"]
[BlackClock "0:00:01"]

1. e4 {[%clk 0:02:58]}  d5 {[%clk 0:02:56]} 2. exd5 {[%clk 0:02:58]}  Qxd5 {[%clk 0:02:54]} 3. Nc3 {[%clk 0:02:58]}  Qd6 {[%clk 0:02:53]} 4. d4 {[%clk 0:02:58]}  Nf6 {[%clk 0:02:53]} 5. Nf3 {[%clk 0:02:57]}  Bf5 {[%clk 0:02:50]} 6. Bc4 {[%clk 0:02:54]}  c6 {[%clk 0:02:48]} 7. Ne2 {[%clk 0:02:53]}  e6 {[%clk 0:02:47]} 8. Bf4 {[%clk 0:02:52]}  Qb4+ {[%clk 0:02:47]} 9. Nd2 {[%clk 0:02:50]}  Ne4 {[%clk 0:02:44]} 10. Bd3 {[%clk 0:02:37]}  Qa5 {[%clk 0:01:36]} 11. O-O {[%clk 0:02:23]}  Nxd2 {[%clk 0:01:30]} 12. Bxd2 {[%clk 0:02:24]}  Qd5 {[%clk 0:01:24]} 13. c4 {[%clk 0:02:23]}  Qd7 {[%clk 0:01:23]} 14. Bxf5 {[%clk 0:02:22]}  exf5 {[%clk 0:01:24]} 15. Re1 {[%clk 0:02:23]}  Be7 {[%clk 0:01:22]} 16. Qc2 {[%clk 0:02:18]}  O-O {[%clk 0:01:15]} 17. Rad1 {[%clk 0:02:17]}  Bf6 {[%clk 0:01:08]} 18. Bc3 {[%clk 0:02:17]}  Na6 {[%clk 0:01:04]} 19. a3 {[%clk 0:02:14]}  Nc7 {[%clk 0:01:03]} 20. b4 {[%clk 0:02:13]}  b5 {[%clk 0:00:58]} 21. d5 {[%clk 0:02:08]}  Bxc3 {[%clk 0:00:47]} 22. Nxc3 {[%clk 0:02:09]}  bxc4 {[%clk 0:00:46]} 23. dxc6 {[%clk 0:02:06]}  Qxc6 {[%clk 0:00:47]} 24. Qxf5 {[%clk 0:02:06]}  Ne6 {[%clk 0:00:46]} 25. Nd5 {[%clk 0:02:02]}  Kh8 {[%clk 0:00:39]} 26. Re3 {[%clk 0:01:57]}  Rad8 {[%clk 0:00:36]} 27. Kf1 {[%clk 0:00:37]}  Nc7 {[%clk 0:00:25]} 28. Nc3 {[%clk 0:00:27]}  Rxd1+ {[%clk 0:00:23]} 29. Nxd1 {[%clk 0:00:28]}  Qd6 {[%clk 0:00:23]} 30. Qc2 {[%clk 0:00:22]}  Ne6 {[%clk 0:00:20]} 31. Nb2 {[%clk 0:00:20]}  Rc8 {[%clk 0:00:16]} 32. g3 {[%clk 0:00:19]}  Qd5 {[%clk 0:00:12]} 33. Ke2 {[%clk 0:00:18]}  Qh5+ {[%clk 0:00:11]} 34. Kf1 {[%clk 0:00:16]}  Qd5 {[%clk 0:00:11]} 35. Qd1 {[%clk 0:00:15]}  Qc6 {[%clk 0:00:08]} 36. Rc3 {[%clk 0:00:13]}  h6 {[%clk 0:00:08]} 37. Rxc4 {[%clk 0:00:12]}  Qb5 {[%clk 0:00:08]} 38. Qe2 {[%clk 0:00:11]}  Rxc4 {[%clk 0:00:08]} 39. Qxc4 {[%clk 0:00:12]}  Qb6 {[%clk 0:00:08]} 40. Qc8+ {[%clk 0:00:11]}  Kh7 {[%clk 0:00:07]} 41. Qc2+ {[%clk 0:00:12]}  g6 {[%clk 0:00:08]} 42. Qd2 {[%clk 0:00:11]}  Qb5+ {[%clk 0:00:08]} 43. Qe2 {[%clk 0:00:11]}  Qf5 {[%clk 0:00:07]} 44. Kg2 {[%clk 0:00:10]}  Nd4 {[%clk 0:00:07]} 45. Qd3 {[%clk 0:00:09]}  Qd5+ {[%clk 0:00:07]} 46. f3 {[%clk 0:00:08]}  Qe5 {[%clk 0:00:05]} 47. Nc4 {[%clk 0:00:07]}  Qf6 {[%clk 0:00:05]} 48. h4 {[%clk 0:00:06]}  Nf5 {[%clk 0:00:05]} 49. Nd2 {[%clk 0:00:04]}  Qb2 {[%clk 0:00:04]} 50. Kh3 {[%clk 0:00:04]}  Qc1 {[%clk 0:00:03]} 51. Nf1 {[%clk 0:00:03]}  Qe1 {[%clk 0:00:03]} 52. Qc4 {[%clk 0:00:02]}  Kg7 {[%clk 0:00:01]} 53. Kg2 {[%clk 0:00:03]} 1-0


[Site "https://www.chess.com"]